lending/lending_fUSD_20240507
["ID","MTS","AMOUNT","RATE_DAILY","PERIOD"]
[326547009,1715100743811,-716.6105558,0.00025479,2]
[326547010,1715100743831,-1137.19,0.00025479,2]
[326547011,1715100743847,-1015.07,0.00025479,2]
[326547012,1715100743857,-500.0,0.00025479,2]
[326547013,1715100743866,-500.0,0.00025479,2]
[326547014,1715100743884,-500.0,0.00025479,2]
[326547015,1715100743896,-500.0,0.00025479,2]
[326547016,1715100743915,-500.0,0.00025479,2]
[326547017,1715100743928,-500.0,0.00025479,2]
[326547018,1715100743956,-500.0,0.00025479,2]
[326547019,1715100743970,-500.0,0.00025479,2]
[326547020,1715100743992,-558.94507374,0.00025479,2]
[326547021,1715100744007,-1230.14,0.00025479,2]
[326547022,1715100744018,-500.0,0.00025479,2]
[326547023,1715100744053,-544.95685285,0.00025479,2]
[326547024,1715100744065,-500.0,0.00025479,2]
[326547025,1715100744104,-1091.36,0.00025479,2]
[326547026,1715100744136,-1576.77,0.00025479,2]
[326547027,1715100744147,-500.0,0.00025479,2]
[326547028,1715100744164,-500.0,0.00025479,2]
[326547029,1715100744179,-1058.72,0.00025479,2]
[326547030,1715100744190,-2633.14,0.00025479,2]
[326547031,1715100744208,-643.72,0.00025479,2]
[326547032,1715100744218,-500.0,0.00025479,2]
[326547033,1715100744228,-500.0,0.00025479,2]
[326547034,1715100744243,-508.07841662,0.00025479,2]
[326547035,1715100744256,-500.0,0.00025479,2]
[326547036,1715100744278,-500.0,0.00025479,2]
[326547037,1715100744296,-500.0,0.00025479,2]
[326547038,1715100744322,-1113.37,0.00025479,2]
[326547039,1715100744357,-1260.71,0.00025479,2]
[326547040,1715100744380,-500.0,0.00025479,2]
[326547041,1715100744390,-250.53184223,0.00025479,2]
[326547042,1715100744414,-560.17,0.00025479,2]
[326547043,1715100744436,-500.0,0.00025479,2]
[326547044,1715100744446,-667.85,0.00025479,2]
[326547045,1715100744457,-500.0,0.00025479,2]
[326547046,1715100744470,-500.0,0.00025479,2]
[326547047,1715100744480,-1991.57,0.00025479,2]
[326547048,1715100744491,-500.0,0.00025479,2]
[326547049,1715100744502,-500.0,0.00025479,2]
[326547050,1715100744515,-1386.49,0.00025479,2]
[326547051,1715100744528,-674.47,0.00025479,2]
[326547052,1715100744569,-1965.84,0.00025479,2]
[326547053,1715100744586,-603.14,0.00025479,2]
[326547054,1715100744623,-1481.21,0.00025479,2]
[326547055,1715100744638,-500.0,0.00025479,2]
[326547056,1715100744650,-500.0,0.00025479,2]
[326547057,1715100744665,-1002.24,0.00025479,2]
[326547058,1715100744678,-625.95,0.00025479,2]
[326547059,1715100744689,-1881.5,0.00025479,2]
[326547060,1715100744699,-500.0,0.00025479,2]
[326547061,1715100744713,-717.62,0.00025479,2]
[326547062,1715100744723,-500.0,0.00025479,2]
[326547063,1715100744738,-2117.85,0.00025479,2]
[326547064,1715100744750,-500.0,0.00025479,2]
[326547065,1715100744774,-1195.24,0.00025479,2]
[326547066,1715100744789,-500.0,0.00025479,2]
[326547067,1715100744800,-647.37,0.00025479,2]
[326547068,1715100744814,-500.0,0.00025479,2]
[326547069,1715100744826,-500.0,0.00025479,2]
[326547070,1715100744843,-757.75,0.00025479,2]
[326547071,1715100744853,-1430.45,0.00025479,2]
[326547072,1715100744890,-2125.98,0.00025479,2]
[326547073,1715100744906,-1338.2,0.00025479,2]
[326547074,1715100744917,-545.37,0.00025479,2]
[326547075,1715100744949,-500.0,0.00025479,2]
[326547076,1715100744968,-500.0,0.00025479,2]
[326547077,1715100744979,-500.0,0.00025479,2]
[326547078,1715100744992,-948.97,0.00025479,2]
[326547079,1715100745006,-500.0,0.00025479,2]
[326547080,1715100745016,-500.0,0.00025479,2]
[326547081,1715100745029,-500.0,0.00025479,2]
[326547082,1715100745041,-1415.95,0.00025479,2]
[326547083,1715100745052,-1125.88,0.00025479,2]
[326547084,1715100745063,-590.33191819,0.00025479,2]
[326547085,1715100745082,-1056.22,0.00025479,2]
[326547086,1715100745092,-500.0,0.00025479,2]
[326547087,1715100745102,-2378.36,0.00025479,2]
[326547088,1715100745146,-500.0,0.00025479,2]
[326547089,1715100745159,-500.0,0.00025479,2]
[326547090,1715100745170,-2583.23,0.00025479,2]
[326547091,1715100745188,-535.43,0.00025479,2]
[326547092,1715100745199,-500.0,0.00025479,2]
[326547093,1715100745211,-500.0,0.00025479,2]
[326547094,1715100745221,-500.0,0.00025479,2]
[326547095,1715100745268,-500.0,0.00025479,2]
[326547096,1715100745300,-500.0,0.00025479,2]
[326547097,1715100745311,-500.0,0.00025479,2]
[326547098,1715100745354,-500.0,0.00025479,2]
[326547099,1715100745384,-942.21,0.00025479,2]
[326547100,1715100745395,-1276.0,0.00025479,2]
[326547101,1715100745444,-838.89,0.00025479,2]
[326547102,1715100745473,-500.0,0.00025479,2]
[326547103,1715100745491,-1278.02,0.00025479,2]
[326547104,1715100745502,-500.0,0.00025479,2]
[326547105,1715100745513,-435.66379626,0.00025479,2]
[326547106,1715100745528,-1509.73,0.00025479,2]
[326547107,1715100745544,-268.33412362,0.00025479,2]
[326547108,1715100745570,-500.0,0.00025479,2]
[326547109,1715100745581,-719.87,0.00025479,2]
[326547110,1715100745598,-500.0,0.00025479,2]
[326547111,1715100745615,-500.0,0.00025479,2]
[326547112,1715100745625,-1707.21,0.00025479,2]
[326547113,1715100745636,-653.81,0.00025479,2]
[326547114,1715100745653,-500.0,0.00025479,2]
[326547115,1715100745681,-500.0,0.00025479,2]
[326547116,1715100745692,-2002.09,0.00025479,2]
[326547117,1715100745704,-1579.48,0.00025479,2]
[326547118,1715100745717,-530.05087784,0.00025479,2]
[326547119,1715100745731,-1817.99,0.00025479,2]
[326547120,1715100745743,-500.0,0.00025479,2]
[326547121,1715100745780,-838.02,0.00025479,2]
[326547122,1715100745856,-500.0,0.00025479,2]
[326547123,1715100745867,-3274.04,0.00025479,2]
[326547124,1715100745877,-500.0,0.00025479,2]
[326547125,1715100745888,-500.0,0.00025479,2]
[326547126,1715100745900,-784.89,0.00025479,2]
[326547127,1715100745916,-4403.86,0.00025479,2]
[326547128,1715100745972,-953.73,0.00025479,2]
[326547129,1715100745983,-500.0,0.00025479,2]
[326547130,1715100745996,-872.56,0.00025479,2]
[326547131,1715100746009,-500.0,0.00025479,2]
[326547132,1715100746021,-2924.1,0.00025479,2]
[326547133,1715100746060,-500.0,0.00025479,2]
[326547134,1715100746073,-266.65436004,0.00025479,2]
[326547135,1715100746086,-549.87,0.00025479,2]
[326547136,1715100746112,-987.78,0.00025479,2]
[326547137,1715100746133,-500.0,0.00025479,2]
[326547138,1715100746163,-500.0,0.00025479,2]
[326547139,1715100746174,-2305.85,0.00025479,2]
[326547140,1715100746188,-500.0,0.00025479,2]
[326547141,1715100746201,-2687.74,0.00025479,2]
[326547142,1715100746214,-500.0,0.00025479,2]
[326547143,1715100746245,-557.26,0.00025479,2]
[326547144,1715100746256,-500.0,0.00025479,2]
[326547145,1715100746282,-500.0,0.00025479,2]
[326547146,1715100746293,-1177.04,0.00025479,2]
[326547147,1715100746305,-500.0,0.00025479,2]
[326547148,1715100746323,-909.99,0.00025479,2]
[326547149,1715100746341,-1331.96,0.00025479,2]
[326547150,1715100746352,-500.0,0.00025479,2]
[326547151,1715100746368,-500.0,0.00025479,5]
[326547152,1715100746377,-500.0,0.00025479,2]
[326547153,1715100746390,-1082.56,0.00025479,2]
[326547154,1715100746416,-514.07,0.00025479,2]
[326547155,1715100746427,-2159.16,0.00025479,2]
[326547156,1715100746464,-506.06322207,0.00025479,2]
[326547157,1715100746508,-1474.68,0.00025479,2]
[326547158,1715100746519,-564.39,0.00025479,2]
[326547159,1715100746530,-507.69041326,0.00025479,2]
[326547160,1715100746540,-500.0,0.00025479,2]
[326547161,1715100746550,-500.0,0.00025479,2]
[326547162,1715100746569,-500.0,0.00025479,2]
[326547163,1715100746581,-10438.34,0.00025479,2]
[326547164,1715100746612,-762.29,0.00025479,2]
[326547165,1715100746628,-620.55,0.00025479,2]
[326547166,1715100746642,-500.0,0.00025479,2]
[326547167,1715100746653,-500.0,0.00025479,2]
[326547168,1715100746665,-1607.61,0.00025479,2]
[326547169,1715100746675,-518.61,0.00025479,2]
[326547170,1715100746685,-509.0,0.00025479,2]
[326547171,1715100746700,-500.0,0.00025479,2]
[326547172,1715100746712,-500.0,0.00025479,2]
[326547173,1715100746726,-792.12,0.00025479,2]
[326547174,1715100746752,-500.0,0.00025479,2]
[326547175,1715100746805,-500.0,0.00025479,2]
[326547176,1715100746817,-2308.85,0.00025479,2]
[326547177,1715100746832,-558.21,0.00025479,2]
[326547178,1715100746847,-1403.61,0.00025479,2]
[326547179,1715100746868,-880.17,0.00025479,2]
[326547180,1715100746882,-500.0,0.00025479,2]
[326547181,1715100746896,-860.38,0.00025479,2]
[326547182,1715100746910,-500.0,0.00025479,2]
[326547183,1715100746928,-4250.33,0.00025479,2]
[326547184,1715100746969,-507.02255705,0.00025479,2]
[326547185,1715100746980,-500.0,0.00025479,2]
[326547186,1715100747014,-796.43,0.00025479,2]
[326547187,1715100747048,-2750.1,0.00025479,2]
[326547188,1715100747060,-500.0,0.00025479,2]
[326547189,1715100747071,-1148.58,0.00025479,2]
[326547190,1715100747085,-500.0,0.00025479,2]
[326547191,1715100747097,-500.0,0.00025479,2]
[326547192,1715100747118,-673.49,0.00025479,2]
[326547193,1715100747162,-2470.89,0.00025479,2]
[326547194,1715100747174,-500.0,0.00025479,2]
[326547195,1715100747198,-500.0,0.00025479,2]
[326547196,1715100747225,-520.46,0.00025479,2]
[326547197,1715100747254,-1000.0,0.00025479,2]
[326547198,1715100747265,-1693.92,0.00025479,2]
[326547199,1715100747285,-500.0,0.00025479,2]
[326547200,1715100747295,-500.0,0.00025479,2]
[326547201,1715100747312,-1836.32,0.00025479,2]
[326547202,1715100747348,-1280.36,0.00025479,2]
[326547203,1715100747359,-500.0,0.00025479,2]
[326547204,1715100747370,-3253.74,0.00025479,2]
[326547205,1715100747380,-7160.38,0.00025479,2]
[326547206,1715100747460,-1975.28,0.00025479,2]
[326547207,1715100747477,-675.61,0.00025479,2]
[326547208,1715100747490,-500.0,0.00025479,2]
[326547209,1715100747507,-1745.25,0.00025479,2]
[326547210,1715100747547,-548.94169618,0.00025479,2]
[326547211,1715100747558,-500.0,0.00025479,2]
[326547212,1715100747568,-2059.29,0.00025479,2]
[326547213,1715100747578,-500.0,0.00025479,2]
[326547214,1715100747589,-1627.07,0.00025479,2]
[326547215,1715100747611,-442.21326496,0.00025479,2]
[326547216,1715100747621,-720.41,0.00025479,2]
[326547217,1715100747665,-930.65,0.00025479,2]
[326547218,1715100747685,-508.21574123,0.00025479,2]
[326547219,1715100747700,-579.06,0.00025479,2]
[326547220,1715100747712,-500.0,0.00025479,2]
[326547221,1715100747733,-500.0,0.00025479,2]
[326547222,1715100747746,-1199.53,0.00025479,2]
[326547223,1715100747758,-5116.17,0.00025479,2]
[326547224,1715100747778,-542.37206829,0.00025479,2]
[326547225,1715100747790,-1343.83,0.00025479,2]
[326547226,1715100747832,-500.0,0.00025479,2]
[326547227,1715100747844,-1251.28,0.00025479,2]
[326547228,1715100747862,-500.0,0.00025479,2]
[326547229,1715100747874,-2179.04,0.00025479,2]
[326547230,1715100747900,-4660.06,0.00025479,2]
[326547231,1715100747934,-1623.15,0.00025479,2]
[326547232,1715100747955,-743.97,0.00025479,2]
[326547233,1715100747968,-500.0,0.00025479,2]
[326547234,1715100747989,-1350.71,0.00025479,2]
[326547235,1715100748007,-500.0,0.00025479,2]
[326547236,1715100748025,-500.0,0.00025479,2]
[326547237,1715100748043,-888.1,0.00025479,2]
[326547238,1715100748054,-500.0,0.00025479,2]
[326547239,1715100748065,-904.9,0.00025479,2]
[326547240,1715100748099,-1565.96,0.00025479,2]
[326547241,1715100748125,-500.0,0.00025479,2]
[326547242,1715100748140,-1616.29,0.00025479,2]
[326547243,1715100748156,-634.16,0.00025479,2]
[326547244,1715100748185,-500.0,0.00025479,2]
[326547245,1715100748228,-500.0,0.00025479,2]
[326547246,1715100748249,-500.0,0.00025479,2]
[326547247,1715100748268,-1765.34,0.00025479,2]
[326547248,1715100748303,-9613.62,0.00025479,2]
[326547249,1715100748313,-961.23,0.00025479,2]
[326547250,1715100748324,-855.56,0.00025479,2]
[326547251,1715100748334,-1388.59,0.00025479,2]
[326547252,1715100748346,-500.0,0.00025479,2]
[326547253,1715100748368,-1100.47,0.00025479,2]
[326547254,1715100748409,-1194.12,0.00025479,2]
[326547255,1715100748420,-500.0,0.00025479,2]
[326547256,1715100748431,-500.0,0.00025479,2]
[326547257,1715100748441,-500.0,0.00025479,2]
[326547258,1715100748459,-911.34,0.00025479,2]
[326547259,1715100748470,-545.35,0.00025479,2]
[326547260,1715100748501,-722.89,0.00025479,2]
[326547261,1715100748548,-500.0,0.00025479,2]
[326547262,1715100748559,-500.0,0.00025479,2]
[326547263,1715100748572,-691.06,0.00025479,2]
[326547264,1715100748582,-1246.06,0.00025479,2]
[326547265,1715100748656,-893.14,0.00025479,2]
[326547266,1715100748667,-814.51,0.00025479,2]
[326547267,1715100748680,-828.26,0.00025479,2]
[326547268,1715100748691,-2791.31,0.00025479,2]
[326547269,1715100748703,-5169.14,0.00025479,2]
[326547270,1715100748713,-500.0,0.00025479,2]
[326547271,1715100748724,-940.61,0.00025479,2]
[326547272,1715100748740,-4589.16,0.00025479,2]
[326547273,1715100748752,-1097.43,0.00025479,2]
[326547274,1715100748762,-500.0,0.00025479,2]
[326547275,1715100748776,-500.0,0.00025479,2]
[326547276,1715100748788,-500.0,0.00025479,2]
[326547277,1715100748849,-500.0,0.00025479,2]
[326547278,1715100748861,-835.97,0.00025479,2]
[326547279,1715100748875,-500.0,0.00025479,2]
[326547280,1715100748893,-500.0,0.00025479,2]
[326547281,1715100748932,-5330.36,0.00025479,2]
[326547282,1715100748944,-500.0,0.00025479,2]
[326547283,1715100748957,-500.0,0.00025479,2]
[326547284,1715100748976,-500.0,0.00025479,2]
[326547285,1715100748987,-500.0,0.00025479,2]
[326547286,1715100749002,-777.68,0.00025479,2]
[326547287,1715100749021,-509.000988,0.00025479,2]
[326547288,1715100749033,-500.0,0.00025479,2]
[326547289,1715100749057,-3200.69,0.00025479,2]
[326547290,1715100749073,-500.0,0.00025479,2]
[326547291,1715100749091,-559.11,0.00025479,2]
[326547292,1715100749122,-500.0,0.00025479,2]
[326547293,1715100749135,-500.0,0.00025479,2]
[326547294,1715100749146,-2177.48,0.00025479,2]
[326547295,1715100749158,-282.96356341,0.00025479,2]
[326547296,1715100749170,-500.0,0.00025479,2]
[326547297,1715100749182,-899.32,0.00025479,2]
[326547298,1715100749210,-500.0,0.00025479,2]
[326547299,1715100749244,-500.0,0.00025479,2]
[326547300,1715100749264,-500.0,0.00025479,2]
[326547301,1715100749297,-500.0,0.00025479,2]
[326547302,1715100749316,-500.0,0.00025479,2]
[326547303,1715100749344,-500.0,0.00025479,2]
[326547304,1715100749373,-500.0,0.00025479,2]
[326547305,1715100749387,-851.58,0.00025479,2]
[326547306,1715100749398,-500.0,0.00025479,2]
[326547307,1715100749413,-500.0,0.00025479,2]
[326547308,1715100749438,-500.0,0.00025479,2]
[326547309,1715100749450,-500.0,0.00025479,2]
[326547310,1715100749485,-500.0,0.00025479,2]
[326547311,1715100749535,-500.0,0.00025479,2]
[326547312,1715100749549,-723.64,0.00025479,2]
[326547313,1715100749570,-500.0,0.00025479,2]
[326547314,1715100749589,-500.0,0.00025479,2]
[326547315,1715100749609,-500.0,0.00025479,2]
[326547316,1715100749622,-1233.99,0.00025479,2]
[326547317,1715100749647,-949.01,0.00025479,2]
[326547318,1715100749701,-1416.99,0.00025479,2]
[326547319,1715100749711,-741.76,0.00025479,2]
[326547320,1715100749739,-1048.92,0.00025479,2]
[326547321,1715100749751,-500.0,0.00025479,2]
[326547322,1715100749764,-500.0,0.00025479,2]
[326547323,1715100749783,-500.0,0.00025479,2]
[326547324,1715100749808,-3573.56,0.00025479,2]
[326547325,1715100749822,-1404.09,0.00025479,2]
[326547326,1715100749858,-3014.55,0.00025479,2]
[326547327,1715100749873,-500.0,0.00025479,2]
[326547328,1715100749886,-881.88,0.00025479,2]
[326547329,1715100749902,-1961.73,0.00025479,2]
[326547330,1715100749918,-550.71,0.00025479,2]
[326547331,1715100749939,-602.39,0.00025479,2]
[326547332,1715100749961,-717.72,0.00025479,2]
[326547333,1715100749977,-650.18,0.00025479,2]
[326547334,1715100750000,-500.0,0.00025479,2]
[326547335,1715100750012,-1267.61,0.00025479,2]
[326547336,1715100750027,-500.0,0.00025479,2]
[326547337,1715100750055,-500.0,0.00025479,2]
[326547338,1715100750067,-500.0,0.00025479,2]
[326547339,1715100750082,-500.0,0.00025479,2]
[326547340,1715100750096,-500.0,0.00025479,2]
[326547341,1715100750126,-1297.0,0.00025479,2]
[326547342,1715100750177,-1202.44,0.00025479,2]
[326547343,1715100750191,-500.0,0.00025479,2]
[326547344,1715100750209,-3515.54,0.00025479,2]
[326547345,1715100750222,-500.0,0.00025479,2]
[326547346,1715100750236,-1568.18,0.00025479,2]
[326547347,1715100750247,-1216.6,0.00025479,2]
[326547348,1715100750263,-500.0,0.00025479,2]
[326547349,1715100750275,-500.0,0.00025479,2]
[326547350,1715100750304,-2727.92,0.00025479,2]
[326547351,1715100750321,-500.0,0.00025479,2]
[326547352,1715100750341,-970.03,0.00025479,2]
[326547353,1715100750353,-500.0,0.00025479,2]
[326547354,1715100750379,-4787.73,0.00025479,2]
[326547355,1715100750392,-211.18222165,0.00025479,2]
[326547356,1715100750409,-1475.13,0.00025479,2]
[326547357,1715100750422,-679.18,0.00025479,2]
[326547358,1715100750442,-558.06,0.00025479,2]
[326547359,1715100750465,-621.13,0.00025479,2]
[326547360,1715100750477,-500.0,0.00025479,2]
[326547361,1715100750488,-500.0,0.00025479,2]
[326547362,1715100750504,-500.0,0.00025479,2]
[326547363,1715100750516,-815.1,0.00025479,2]
[326547364,1715100750532,-500.0,0.00025479,2]
[326547365,1715100750546,-2922.49,0.00025479,2]
[326547366,1715100750567,-500.0,0.00025479,2]
[326547367,1715100750586,-1366.62,0.00025479,2]
[326547368,1715100750611,-623.66,0.00025479,2]
[326547369,1715100750638,-788.87,0.00025479,2]
[326547370,1715100750651,-1485.27,0.00025479,2]
[326547371,1715100750672,-1075.12,0.00025479,2]
[326547372,1715100750683,-500.0,0.00025479,2]
[326547373,1715100750709,-500.0,0.00025479,2]
[326547374,1715100750722,-500.0,0.00025479,2]
[326547375,1715100750736,-783.09,0.00025479,2]
[326547376,1715100750769,-46372.41,0.00025479,2]
[326547377,1715100750797,-3496.26,0.00025479,2]
[326547378,1715100750834,-500.0,0.00025479,2]
[326547379,1715100750845,-500.0,0.00025479,2]
[326547380,1715100750857,-500.0,0.00025479,2]
[326547381,1715100750869,-559.75,0.00025479,2]
[326547382,1715100750881,-500.0,0.00025479,2]
[326547383,1715100750895,-6151.41,0.00025479,2]
[326547384,1715100750914,-2455.11,0.00025479,2]
[326547385,1715100750996,-500.0,0.00025479,2]
[326547386,1715100751007,-500.0,0.00025479,2]
[326547387,1715100751017,-500.0,0.00025479,2]
[326547388,1715100751030,-1749.69,0.00025479,2]
[326547389,1715100751041,-1371.86,0.00025479,2]
[326547390,1715100751057,-3497.73,0.00025479,2]
[326547391,1715100751105,-500.0,0.00025479,2]
[326547392,1715100751119,-806.41,0.00025479,2]
[326547393,1715100751130,-500.0,0.00025479,2]
[326547394,1715100751143,-948.1,0.00025479,2]
[326547395,1715100751153,-6192.67,0.00025479,2]
[326547396,1715100751175,-500.0,0.00025479,2]
[326547397,1715100751191,-863.67,0.00025479,2]
[326547398,1715100751202,-907.32,0.00025479,2]
[326547399,1715100751212,-500.0,0.00025479,2]
[326547400,1715100751227,-501.38,0.00025479,2]
[326547401,1715100751243,-500.0,0.00025479,2]
[326547402,1715100751274,-3854.9,0.00025479,2]
[326547403,1715100751335,-8947.76,0.00025479,2]
[326547404,1715100751356,-500.0,0.00025479,2]
[326547405,1715100751368,-508.22,0.00025479,2]
[326547406,1715100751397,-500.0,0.00025479,2]
[326547407,1715100751410,-5335.72,0.00025479,2]
[326547408,1715100751426,-1503.08,0.00025479,2]
[326547409,1715100751438,-3719.33,0.00025479,2]
[326547410,1715100751449,-500.0,0.00025479,2]
[326547411,1715100751467,-1230.21,0.00025479,2]
[326547412,1715100751482,-1664.73,0.00025479,2]
[326547413,1715100751496,-3050.31,0.00025479,2]
[326547414,1715100751506,-723.54,0.00025479,2]
[326547415,1715100751528,-500.0,0.00025479,2]
[326547416,1715100751555,-14262.11,0.00025479,2]
[326547417,1715100751570,-5916.29,0.00025479,2]
[326547418,1715100751583,-500.0,0.00025479,2]
[326547419,1715100751634,-500.0,0.00025479,2]
[326547420,1715100751646,-500.0,0.00025479,2]
[326547421,1715100751662,-742.15,0.00025479,2]
[326547422,1715100751673,-500.0,0.00025479,2]
[326547423,1715100751721,-849.65,0.00025479,2]
[326547424,1715100751733,-3400.94,0.00025479,2]
[326547425,1715100751761,-3107.68,0.00025479,2]
[326547426,1715100751771,-500.0,0.00025479,2]
[326547427,1715100751820,-3276.03,0.00025479,2]
[326547428,1715100751830,-553.72,0.00025479,2]
[326547429,1715100751865,-567.58,0.00025479,2]
[326547430,1715100751880,-766.13,0.00025479,2]
[326547431,1715100751913,-507.10683302,0.00025479,2]
[326547432,1715100751935,-3453.67,0.00025479,2]
[326547433,1715100751947,-654.05,0.00025479,2]
[326547434,1715100751958,-500.0,0.00025479,2]
[326547435,1715100751986,-6145.48,0.00025479,2]
[326547436,1715100751997,-1426.13,0.00025479,2]
[326547437,1715100752013,-1020.1,0.00025479,2]
[326547438,1715100752037,-21255.09,0.00025479,2]
[326547439,1715100752057,-500.0,0.00025479,2]
[326547440,1715100752071,-552.98,0.00025479,2]
[326547441,1715100752086,-500.0,0.00025479,2]
[326547442,1715100752124,-500.0,0.00025479,2]
[326547443,1715100752142,-500.0,0.00025479,2]
[326547444,1715100752167,-10028.3,0.00025479,2]
[326547445,1715100752190,-1648.62,0.00025479,2]
[326547446,1715100752203,-1029.15,0.00025479,2]
[326547447,1715100752224,-1191.0,0.00025479,2]
[326547448,1715100752245,-500.0,0.00025479,2]
[326547449,1715100752256,-500.0,0.00025479,2]
[326547450,1715100752299,-2857.63,0.00025479,2]
[326547451,1715100752310,-500.0,0.00025479,2]
[326547452,1715100752321,-1844.38,0.00025479,2]
[326547453,1715100752333,-500.0,0.00025479,2]
[326547454,1715100752344,-658.88,0.00025479,2]
[326547455,1715100752358,-630.52,0.00025479,2]
[326547456,1715100752370,-2162.51,0.00025479,2]
[326547457,1715100752381,-5581.37,0.00025479,2]
[326547458,1715100752394,-892.7,0.00025479,2]
[326547459,1715100752407,-500.0,0.00025479,2]
[326547460,1715100752419,-1465.18,0.00025479,2]
[326547461,1715100752429,-2702.27,0.00025479,2]
[326547462,1715100752444,-500.0,0.00025479,2]
[326547463,1715100752458,-500.0,0.00025479,2]
[326547464,1715100752489,-2382.14,0.00025479,2]
[326547465,1715100752505,-595.98,0.00025479,2]
[326547466,1715100752531,-500.0,0.00025479,2]
[326547467,1715100752544,-500.0,0.00025479,2]
[326547468,1715100752565,-1783.88,0.00025479,2]
[326547469,1715100752581,-9586.67,0.00025479,2]
[326547470,1715100752603,-500.0,0.00025479,2]
[326547471,1715100752619,-1228.8,0.00025479,2]
[326547472,1715100752676,-1315.3,0.00025479,2]
[326547473,1715100752693,-500.0,0.00025479,2]
[326547474,1715100752705,-2838.38,0.00025479,2]
[326547475,1715100752716,-857.45,0.00025479,2]
[326547476,1715100752741,-2516.16,0.00025479,2]
[326547477,1715100752752,-590.74,0.00025479,2]
[326547478,1715100752766,-538.34351142,0.00025479,2]
[326547479,1715100752779,-2796.49,0.00025479,2]
[326547480,1715100752790,-2248.38,0.00025479,2]
[326547481,1715100752812,-500.0,0.00025479,2]
[326547482,1715100752823,-883.15,0.00025479,2]
[326547483,1715100752834,-759.73,0.00025479,2]
[326547484,1715100752867,-1564.15,0.00025479,2]
[326547485,1715100752878,-1226.26,0.00025479,2]
[326547486,1715100752890,-500.0,0.00025479,2]
[326547487,1715100752917,-3884.79,0.00025479,2]
[326547488,1715100752930,-554.79,0.00025479,2]
[326547489,1715100752940,-536.92,0.00025479,2]
[326547490,1715100752967,-500.0,0.00025479,2]
[326547491,1715100753008,-4991.7,0.00025479,2]
[326547492,1715100753019,-9672.4,0.00025479,2]
[326547493,1715100753030,-4438.12,0.00025479,2]
[326547494,1715100753052,-500.0,0.00025479,2]
[326547495,1715100753063,-500.0,0.00025479,2]
[326547496,1715100753080,-159.09781224,0.00025479,2]
[326547497,1715100753091,-627.83,0.00025479,2]
[326547498,1715100753116,-960.52,0.00025479,2]
[326547499,1715100753139,-4573.52,0.00025479,2]
[326547500,1715100753181,-3690.9,0.00025479,2]
[326547501,1715100753198,-500.0,0.00025479,2]
[326547502,1715100753209,-623.68,0.00025479,2]
[326547503,1715100753224,-500.0,0.00025479,2]
[326547504,1715100753262,-735.18,0.00025479,2]
[326547505,1715100753278,-500.0,0.00025479,2]
[326547506,1715100753297,-500.0,0.00025479,2]
[326547507,1715100753308,-513.46,0.00025479,2]
[326547508,1715100753318,-500.0,0.00025479,2]